[Event "*** SCC Grand Prix: Titled Tuesday Blitz"]
[Site "Chess.com"]
[Date "2020.07.07"]
[Round "10"]
[White "dodorox"]
[Black "vitnik2020"]
[Result "1/2-1/2"]
[WhiteElo "2104"]
[BlackElo "2273"]
[TimeControl "180+1"]
[EndTime "11:53:03 PDT"]
[Termination "Game drawn by agreement"]

1. d4 {[%clk 0:03:00.4]} 1... d5 {[%clk 0:02:57.6]} 2. c4 {[%clk 0:02:56.1]}
2... e6 {[%clk 0:02:56.7]} 3. Nc3 {[%clk 0:02:51.7]} 3... Be7 {[%clk 0:02:56.1]}
4. Nf3 {[%clk 0:02:50.3]} 4... Nf6 {[%clk 0:02:54.1]} 5. Bg5 {[%clk 0:02:50.2]}
5... h6 {[%clk 0:02:52.6]} 6. Bh4 {[%clk 0:02:50]} 6... dxc4 {[%clk 0:02:45.7]}
7. e3 {[%clk 0:02:48.8]} 7... c5 {[%clk 0:02:45.1]} 8. Bxc4 {[%clk 0:02:47.1]}
8... cxd4 {[%clk 0:02:44.2]} 9. exd4 {[%clk 0:02:46.1]} 9... Nc6 {[%clk
0:02:38.6]} 10. O-O {[%clk 0:02:42.7]} 10... O-O {[%clk 0:02:38.2]} 11. Qd2
{[%clk 0:02:32.8]} 11... Nh5 {[%clk 0:02:30.4]} 12. Bxe7 {[%clk 0:02:26.2]}
12... Nxe7 {[%clk 0:02:29.4]} 13. d5 {[%clk 0:02:18.8]} 13... exd5 {[%clk
0:02:26.9]} 14. Nxd5 {[%clk 0:02:17.8]} 14... Nxd5 {[%clk 0:02:24.6]} 15. Qxd5
{[%clk 0:02:17.6]} 15... Qxd5 {[%clk 0:02:18.7]} 16. Bxd5 {[%clk 0:02:18.4]}
16... Nf6 {[%clk 0:02:18.3]} 1/2-1/2

[Event "*** SCC Grand Prix: Titled Tuesday Blitz"]
[Site "Chess.com"]
[Date "2020.07.07"]
[Round "10"]
[White "deribas12345"]
[Black "colegiodemadrid"]
[Result "0-1"]
[WhiteElo "2566"]
[BlackElo "2433"]
[TimeControl "180+1"]
[EndTime "11:53:08 PDT"]
[Termination "colegiodemadrid won by resignation"]

1. d4 {[%clk 0:03:00.9]} 1... Nf6 {[%clk 0:02:58.9]} 2. c4 {[%clk 0:03:01.4]}
2... g6 {[%clk 0:02:54.3]} 3. Nc3 {[%clk 0:03:01.3]} 3... Bg7 {[%clk 0:02:54.9]}
4. e4 {[%clk 0:03:01.7]} 4... d6 {[%clk 0:02:55.5]} 5. Nge2 {[%clk 0:03:01.9]}
5... O-O {[%clk 0:02:54.5]} 6. Ng3 {[%clk 0:03:01.9]} 6... h5 {[%clk 0:02:55.1]}
7. Be2 {[%clk 0:03:01]} 7... h4 {[%clk 0:02:55]} 8. Nf1 {[%clk 0:03:00.9]} 8...
e5 {[%clk 0:02:55.4]} 9. d5 {[%clk 0:02:59.6]} 9... c5 {[%clk 0:02:55.2]} 10.
Bg5 {[%clk 0:02:57.8]} 10... h3 {[%clk 0:02:53.8]} 11. g4 {[%clk 0:02:57.7]}
11... Qb6 {[%clk 0:02:51.4]} 12. Qd2 {[%clk 0:02:50]} 12... Nh7 {[%clk
0:02:50.5]} 13. Be3 {[%clk 0:02:49]} 13... Qd8 {[%clk 0:02:48.3]} 14. O-O-O
{[%clk 0:02:44.6]} 14... a6 {[%clk 0:02:47.8]} 15. Ng3 {[%clk 0:02:42.1]} 15...
Qh4 {[%clk 0:02:44.3]} 16. Rhg1 {[%clk 0:02:38]} 16... Bd7 {[%clk 0:02:32.4]}
17. Nf5 {[%clk 0:02:37.1]} 17... gxf5 {[%clk 0:02:30.3]} 18. gxf5 {[%clk
0:02:38]} 18... Kh8 {[%clk 0:02:16.4]} 19. Rg4 {[%clk 0:02:36.9]} 19... Qf6
{[%clk 0:02:16.1]} 20. Rdg1 {[%clk 0:02:37]} 20... Rg8 {[%clk 0:02:15.8]} 21.
Bh6 {[%clk 0:02:33.5]} 21... Qxh6 {[%clk 0:02:11]} 22. Qxh6 {[%clk 0:02:31.7]}
22... Bxh6+ {[%clk 0:02:11.9]} 23. Kc2 {[%clk 0:02:31.5]} 0-1

[Event "*** SCC Grand Prix: Titled Tuesday Blitz"]
[Site "Chess.com"]
[Date "2020.07.07"]
[Round "10"]
[White "blitzking1729"]
[Black "KingCrusher275"]
[Result "1-0"]
[WhiteElo "2553"]
[BlackElo "2429"]
[TimeControl "180+1"]
[EndTime "11:53:17 PDT"]
[Termination "blitzking1729 won by resignation"]

1. Nf3 {[%clk 0:03:00.9]} 1... d5 {[%clk 0:02:59.5]} 2. c4 {[%clk 0:03:00.4]}
2... e6 {[%clk 0:02:59.3]} 3. d4 {[%clk 0:02:59.9]} 3... Nf6 {[%clk 0:02:59.1]}
4. Nc3 {[%clk 0:02:59.9]} 4... Be7 {[%clk 0:02:59.1]} 5. Bg5 {[%clk 0:02:57.2]}
5... Nbd7 {[%clk 0:02:56.5]} 6. e3 {[%clk 0:02:57.4]} 6... h6 {[%clk 0:02:56]}
7. Bh4 {[%clk 0:02:57]} 7... O-O {[%clk 0:02:55.1]} 8. Qc2 {[%clk 0:02:57]} 8...
c5 {[%clk 0:02:54.5]} 9. cxd5 {[%clk 0:02:55.9]} 9... Nxd5 {[%clk 0:02:53.6]}
10. Bxe7 {[%clk 0:02:53.6]} 10... Nxe7 {[%clk 0:02:53.6]} 11. dxc5 {[%clk
0:02:51.5]} 11... Nxc5 {[%clk 0:02:47.1]} 12. Be2 {[%clk 0:02:51.4]} 12... b6
{[%clk 0:02:42.3]} 13. O-O {[%clk 0:02:48.5]} 13... Bb7 {[%clk 0:02:41.8]} 14.
Rfd1 {[%clk 0:02:48.2]} 14... Qc8 {[%clk 0:02:33.2]} 15. Rac1 {[%clk 0:02:46]}
15... Rd8 {[%clk 0:02:31]} 16. b4 {[%clk 0:02:41]} 16... Na6 {[%clk 0:02:23.8]}
17. Rxd8+ {[%clk 0:02:26.4]} 17... Qxd8 {[%clk 0:02:21.6]} 18. Qa4 {[%clk
0:02:25.6]} 18... Rc8 {[%clk 0:02:14.9]} 19. Bxa6 {[%clk 0:02:20.3]} 19... Bxa6
{[%clk 0:02:11]} 20. Qxa6 {[%clk 0:02:19.4]} 1-0

[Event "*** SCC Grand Prix: Titled Tuesday Blitz"]
[Site "Chess.com"]
[Date "2020.07.07"]
[Round "10"]
[White "kushagramohan"]
[Black "Lenyas66"]
[Result "1-0"]
[WhiteElo "2690"]
[BlackElo "2483"]
[TimeControl "180+1"]
[EndTime "11:53:30 PDT"]
[Termination "kushagramohan won by resignation"]

1. e4 {[%clk 0:03:00.9]} 1... e6 {[%clk 0:03:00.1]} 2. d4 {[%clk 0:02:59.5]}
2... d5 {[%clk 0:03:00.4]} 3. Nd2 {[%clk 0:03:00.4]} 3... Nf6 {[%clk 0:03:00.5]}
4. e5 {[%clk 0:03:00.7]} 4... Nfd7 {[%clk 0:03:00.7]} 5. Bd3 {[%clk 0:03:01.4]}
5... c5 {[%clk 0:03:00.8]} 6. c3 {[%clk 0:03:02.1]} 6... Nc6 {[%clk 0:02:59.3]}
7. Ne2 {[%clk 0:03:02.7]} 7... cxd4 {[%clk 0:02:59.7]} 8. cxd4 {[%clk
0:03:03.6]} 8... f6 {[%clk 0:03:00]} 9. exf6 {[%clk 0:03:04.5]} 9... Nxf6 {[%clk
0:03:00.3]} 10. Nf3 {[%clk 0:03:05.4]} 10... Bd6 {[%clk 0:02:59.8]} 11. O-O
{[%clk 0:03:06.1]} 11... Qc7 {[%clk 0:02:59.8]} 12. h3 {[%clk 0:03:06.1]} 12...
O-O {[%clk 0:02:59.3]} 13. Be3 {[%clk 0:03:06.8]} 13... Bd7 {[%clk 0:02:58.8]}
14. Re1 {[%clk 0:03:07.2]} 14... Rae8 {[%clk 0:02:56.4]} 15. Rc1 {[%clk
0:03:07.8]} 15... a6 {[%clk 0:02:50.8]} 16. Nc3 {[%clk 0:03:08.2]} 16... b5
{[%clk 0:02:44.2]} 17. a4 {[%clk 0:03:07.1]} 17... b4 {[%clk 0:02:42.5]} 18. Ne2
{[%clk 0:03:07.7]} 18... Qa5 {[%clk 0:02:40]} 19. b3 {[%clk 0:03:07.3]} 19...
Ne4 {[%clk 0:02:29.8]} 20. Bxe4 {[%clk 0:03:06.1]} 20... dxe4 {[%clk 0:02:29.4]}
21. Ng5 {[%clk 0:03:06.7]} 21... Qf5 {[%clk 0:02:22.8]} 22. Qc2 {[%clk 0:03:05]}
22... e5 {[%clk 0:02:13.2]} 23. Nxe4 {[%clk 0:03:00.5]} 23... exd4 {[%clk
0:02:00.4]} 24. Nxd4 {[%clk 0:02:53.6]} 24... Rxe4 {[%clk 0:01:47.9]} 25. Nxf5
{[%clk 0:02:44.4]} 1-0

[Event "*** SCC Grand Prix: Titled Tuesday Blitz"]
[Site "Chess.com"]
[Date "2020.07.07"]
[Round "10"]
[White "TimKett"]
[Black "esrosenberg"]
[Result "0-1"]
[WhiteElo "2140"]
[BlackElo "2284"]
[TimeControl "180+1"]
[EndTime "11:53:34 PDT"]
[Termination "esrosenberg won by resignation"]

1. e4 {[%clk 0:03:00.9]} 1... e5 {[%clk 0:02:59.7]} 2. f4 {[%clk 0:03:00]} 2...
exf4 {[%clk 0:02:59.6]} 3. Nf3 {[%clk 0:02:59.1]} 3... Nf6 {[%clk 0:03:00.1]} 4.
e5 {[%clk 0:02:55.4]} 4... Nh5 {[%clk 0:03:00.2]} 5. Bc4 {[%clk 0:02:48.1]} 5...
d5 {[%clk 0:02:54.1]} 6. exd6 {[%clk 0:02:43.9]} 6... Qxd6 {[%clk 0:02:52.2]} 7.
d4 {[%clk 0:02:37.6]} 7... Qb4+ {[%clk 0:02:36.4]} 8. Nbd2 {[%clk 0:02:36.6]}
8... Bd6 {[%clk 0:02:21.1]} 9. Bxf7+ {[%clk 0:01:58.6]} 9... Kxf7 {[%clk
0:02:21.3]} 10. Ne5+ {[%clk 0:01:58.8]} 10... Bxe5 {[%clk 0:02:16]} 11. Qxh5+
{[%clk 0:01:58.6]} 11... g6 {[%clk 0:02:16.6]} 0-1

[Event "*** SCC Grand Prix: Titled Tuesday Blitz"]
[Site "Chess.com"]
[Date "2020.07.07"]
[Round "10"]
[White "ZiggyStardust64"]
[Black "Thee-Chessboy"]
[Result "1-0"]
[WhiteElo "2679"]
[BlackElo "2540"]
[TimeControl "180+1"]
[EndTime "11:53:36 PDT"]
[Termination "ZiggyStardust64 won by resignation"]

1. Nf3 {[%clk 0:03:00.3]} 1... Nf6 {[%clk 0:03:00]} 2. c4 {[%clk 0:02:59.1]}
2... g6 {[%clk 0:03:00.5]} 3. g3 {[%clk 0:02:58.6]} 3... Bg7 {[%clk 0:03:01.1]}
4. Bg2 {[%clk 0:02:59.1]} 4... O-O {[%clk 0:03:02]} 5. O-O {[%clk 0:02:59.4]}
5... c6 {[%clk 0:03:00.6]} 6. d4 {[%clk 0:02:51.4]} 6... d5 {[%clk 0:03:00.6]}
7. Nbd2 {[%clk 0:02:50.4]} 7... dxc4 {[%clk 0:02:57.5]} 8. Nxc4 {[%clk
0:02:49.5]} 8... Be6 {[%clk 0:02:57]} 9. b3 {[%clk 0:02:49.7]} 9... Bd5 {[%clk
0:02:53.8]} 10. Bb2 {[%clk 0:02:49.6]} 10... Nbd7 {[%clk 0:02:53.3]} 11. Rc1
{[%clk 0:02:48]} 11... a5 {[%clk 0:02:51.3]} 12. Nfe5 {[%clk 0:02:32]} 12...
Bxg2 {[%clk 0:02:43.8]} 13. Kxg2 {[%clk 0:02:32.9]} 13... a4 {[%clk 0:02:39.2]}
14. bxa4 {[%clk 0:02:30.2]} 14... Nxe5 {[%clk 0:02:37.2]} 15. dxe5 {[%clk
0:02:29.3]} 15... Nd5 {[%clk 0:02:37.5]} 16. e4 {[%clk 0:02:21.9]} 16... Nb4
{[%clk 0:02:36.6]} 17. Qb3 {[%clk 0:02:21.5]} 17... Nd3 {[%clk 0:02:17.8]} 18.
Rcd1 {[%clk 0:02:13.6]} 18... Nc5 {[%clk 0:02:02.5]} 19. Rxd8 {[%clk 0:02:10.9]}
1-0

[Event "*** SCC Grand Prix: Titled Tuesday Blitz"]
[Site "Chess.com"]
[Date "2020.07.07"]
[Round "10"]
[White "Carnivoras"]
[Black "Keithonsky"]
[Result "0-1"]
[WhiteElo "2593"]
[BlackElo "2454"]
[TimeControl "180+1"]
[EndTime "11:53:48 PDT"]
[Termination "Keithonsky won by resignation"]

1. d4 {[%clk 0:03:00.9]} 1... Nf6 {[%clk 0:02:58.7]} 2. Nf3 {[%clk 0:03:01.8]}
2... d5 {[%clk 0:02:56.2]} 3. c4 {[%clk 0:03:02.7]} 3... e6 {[%clk 0:02:55.7]}
4. Nc3 {[%clk 0:03:03]} 4... Be7 {[%clk 0:02:55.4]} 5. Bg5 {[%clk 0:03:01.8]}
5... O-O {[%clk 0:02:54.9]} 6. e3 {[%clk 0:03:02.2]} 6... Nbd7 {[%clk
0:02:51.6]} 7. Be2 {[%clk 0:03:02.4]} 7... dxc4 {[%clk 0:02:50.4]} 8. Bxc4
{[%clk 0:03:01.8]} 8... c5 {[%clk 0:02:50.9]} 9. O-O {[%clk 0:03:01.9]} 9...
cxd4 {[%clk 0:02:50.4]} 10. Nxd4 {[%clk 0:03:02.8]} 10... a6 {[%clk 0:02:49.5]}
11. Rc1 {[%clk 0:03:02.3]} 11... Ne5 {[%clk 0:02:49.8]} 12. Be2 {[%clk
0:03:01.2]} 12... Ng6 {[%clk 0:02:50.1]} 13. Bf3 {[%clk 0:03:00.6]} 13... Qa5
{[%clk 0:02:49.8]} 14. Bxf6 {[%clk 0:02:55.3]} 14... Bxf6 {[%clk 0:02:50.7]} 15.
Qb3 {[%clk 0:02:55.2]} 15... e5 {[%clk 0:02:42.7]} 16. Nde2 {[%clk 0:02:51.8]}
16... Be6 {[%clk 0:02:41.5]} 17. Nd5 {[%clk 0:02:50.1]} 17... b5 {[%clk
0:02:33.8]} 18. Nxf6+ {[%clk 0:02:48.1]} 18... gxf6 {[%clk 0:02:34.7]} 19. Qc3
{[%clk 0:02:45.6]} 19... b4 {[%clk 0:02:29.3]} 20. Qc5 {[%clk 0:02:36.7]} 20...
Qxc5 {[%clk 0:02:28.9]} 21. Rxc5 {[%clk 0:02:37.6]} 21... Rac8 {[%clk
0:02:24.7]} 22. Ra5 {[%clk 0:02:35.6]} 22... Bc4 {[%clk 0:02:21.7]} 23. Re1
{[%clk 0:02:22.6]} 23... Bb5 {[%clk 0:02:17.9]} 24. Ng3 {[%clk 0:02:15.6]} 24...
Rc2 {[%clk 0:02:15.2]} 25. Rb1 {[%clk 0:02:15.5]} 25... Rd8 {[%clk 0:02:12.2]}
26. Be4 {[%clk 0:02:15.2]} 26... Rxb2 {[%clk 0:02:09.4]} 27. Re1 {[%clk
0:02:13.9]} 27... Rdd2 {[%clk 0:02:08]} 0-1

[Event "*** SCC Grand Prix: Titled Tuesday Blitz"]
[Site "Chess.com"]
[Date "2020.07.07"]
[Round "10"]
[White "Matibar"]
[Black "enzovsky"]
[Result "1-0"]
[WhiteElo "2764"]
[BlackElo "2501"]
[TimeControl "180+1"]
[EndTime "11:53:50 PDT"]
[Termination "Matibar won by checkmate"]

1. e4 {[%clk 0:03:00.9]} 1... c5 {[%clk 0:03:00.1]} 2. Nf3 {[%clk 0:03:00.2]}
2... d6 {[%clk 0:03:00.1]} 3. c3 {[%clk 0:02:57.5]} 3... Nf6 {[%clk 0:03:00.1]}
4. Bd3 {[%clk 0:02:56.8]} 4... Nc6 {[%clk 0:02:56.9]} 5. Bc2 {[%clk 0:02:52.5]}
5... e5 {[%clk 0:02:47.8]} 6. h3 {[%clk 0:02:51]} 6... Be7 {[%clk 0:02:48.2]} 7.
O-O {[%clk 0:02:50.7]} 7... O-O {[%clk 0:02:44.4]} 8. a3 {[%clk 0:02:45.9]} 8...
h6 {[%clk 0:02:38.5]} 9. Re1 {[%clk 0:02:44.4]} 9... Be6 {[%clk 0:02:38]} 10. d4
{[%clk 0:02:43.4]} 10... exd4 {[%clk 0:02:36.8]} 11. cxd4 {[%clk 0:02:43.5]}
11... cxd4 {[%clk 0:02:37.7]} 12. Nxd4 {[%clk 0:02:43.4]} 12... Nxd4 {[%clk
0:02:38.2]} 13. Qxd4 {[%clk 0:02:44.2]} 13... Rc8 {[%clk 0:02:38.7]} 14. Nc3
{[%clk 0:02:43.2]} 14... a6 {[%clk 0:02:37.9]} 15. Be3 {[%clk 0:02:28.5]} 15...
Nd7 {[%clk 0:02:34.1]} 16. Rad1 {[%clk 0:02:22.2]} 16... Ne5 {[%clk 0:02:30.8]}
17. f4 {[%clk 0:02:18.3]} 17... Nc4 {[%clk 0:02:28.3]} 18. Bc1 {[%clk
0:02:17.3]} 18... d5 {[%clk 0:02:27.8]} 19. Kh1 {[%clk 0:01:57.3]} 19... Bc5
{[%clk 0:02:22.5]} 20. Qd3 {[%clk 0:01:55.2]} 20... dxe4 {[%clk 0:02:18.4]} 21.
Qxe4 {[%clk 0:01:51]} 21... Qh4 {[%clk 0:02:09.8]} 22. Qh7# {[%clk 0:01:48.7]}
1-0

[Event "*** SCC Grand Prix: Titled Tuesday Blitz"]
[Site "Chess.com"]
[Date "2020.07.07"]
[Round "10"]
[White "volcanoexplorer"]
[Black "random_mango"]
[Result "1-0"]
[WhiteElo "2594"]
[BlackElo "2411"]
[TimeControl "180+1"]
[EndTime "11:54:12 PDT"]
[Termination "volcanoexplorer won by resignation"]

1. e4 {[%clk 0:03:00.9]} 1... e5 {[%clk 0:02:59.7]} 2. Nf3 {[%clk 0:03:00.9]}
2... Nc6 {[%clk 0:03:00.2]} 3. Bc4 {[%clk 0:03:01.2]} 3... Nf6 {[%clk
0:02:59.4]} 4. d3 {[%clk 0:03:01.6]} 4... Be7 {[%clk 0:02:57.9]} 5. O-O {[%clk
0:03:01.3]} 5... O-O {[%clk 0:02:57.9]} 6. Re1 {[%clk 0:03:01.7]} 6... d6 {[%clk
0:02:58.2]} 7. c3 {[%clk 0:03:02.1]} 7... Na5 {[%clk 0:02:57.8]} 8. Bb5 {[%clk
0:03:02.3]} 8... a6 {[%clk 0:02:58.5]} 9. Ba4 {[%clk 0:03:02.7]} 9... b5 {[%clk
0:02:59.2]} 10. Bc2 {[%clk 0:03:03.3]} 10... c5 {[%clk 0:02:59.5]} 11. Nbd2
{[%clk 0:03:03.8]} 11... Nc6 {[%clk 0:03:00.4]} 12. Nf1 {[%clk 0:03:04.1]} 12...
Re8 {[%clk 0:03:01.1]} 13. h3 {[%clk 0:03:02.9]} 13... Bf8 {[%clk 0:03:00.8]}
14. d4 {[%clk 0:03:02.6]} 14... h6 {[%clk 0:02:51.7]} 15. Ng3 {[%clk 0:02:56.1]}
15... g6 {[%clk 0:02:51.6]} 16. Be3 {[%clk 0:02:53.1]} 16... exd4 {[%clk
0:02:43.2]} 17. cxd4 {[%clk 0:02:52]} 17... cxd4 {[%clk 0:02:44.1]} 18. Nxd4
{[%clk 0:02:52.6]} 18... Nxd4 {[%clk 0:02:44.5]} 19. Qxd4 {[%clk 0:02:40]} 19...
Bg7 {[%clk 0:02:45.4]} 20. Qd2 {[%clk 0:02:35.5]} 20... Bb7 {[%clk 0:02:44.1]}
21. Bxh6 {[%clk 0:02:31.1]} 21... Rc8 {[%clk 0:02:37.8]} 22. Bxg7 {[%clk
0:02:26.8]} 22... Kxg7 {[%clk 0:02:38.7]} 23. Rad1 {[%clk 0:02:18]} 23... Re5
{[%clk 0:02:24.7]} 24. Bb3 {[%clk 0:02:02.6]} 24... d5 {[%clk 0:02:18.5]} 25.
exd5 {[%clk 0:01:52.5]} 25... Rxe1+ {[%clk 0:02:19.4]} 26. Qxe1 {[%clk
0:01:53.2]} 26... Nxd5 {[%clk 0:02:17.4]} 27. Bxd5 {[%clk 0:01:51]} 27... Bxd5
{[%clk 0:02:18.3]} 28. Qe5+ {[%clk 0:01:51.1]} 28... Qf6 {[%clk 0:02:12.1]} 29.
Qxf6+ {[%clk 0:01:42.2]} 29... Kxf6 {[%clk 0:02:13]} 30. Rxd5 {[%clk 0:01:42.4]}
1-0

[Event "*** SCC Grand Prix: Titled Tuesday Blitz"]
[Site "Chess.com"]
[Date "2020.07.07"]
[Round "10"]
[White "Nikithebest"]
[Black "mjray79"]
[Result "1-0"]
[WhiteElo "2476"]
[BlackElo "2328"]
[TimeControl "180+1"]
[EndTime "11:54:19 PDT"]
[Termination "Nikithebest won by resignation"]

1. e4 {[%clk 0:03:00.9]} 1... e5 {[%clk 0:03:00]} 2. Nf3 {[%clk 0:03:01.2]} 2...
Nc6 {[%clk 0:03:00.3]} 3. Nc3 {[%clk 0:03:00.2]} 3... Nf6 {[%clk 0:03:00]} 4. d4
{[%clk 0:03:00.8]} 4... exd4 {[%clk 0:02:59.6]} 5. Nxd4 {[%clk 0:02:59.9]} 5...
Bb4 {[%clk 0:03:00.2]} 6. Nxc6 {[%clk 0:02:58.7]} 6... bxc6 {[%clk 0:03:01.1]}
7. Bd3 {[%clk 0:02:59.3]} 7... d5 {[%clk 0:03:01.7]} 8. exd5 {[%clk 0:03:00.2]}
8... cxd5 {[%clk 0:03:02.6]} 9. O-O {[%clk 0:02:58.4]} 9... O-O {[%clk 0:03:03]}
10. h3 {[%clk 0:02:56.5]} 10... c6 {[%clk 0:03:01.9]} 11. Qf3 {[%clk 0:02:54.2]}
11... Be7 {[%clk 0:03:01.4]} 12. Bf4 {[%clk 0:02:44.8]} 12... Be6 {[%clk
0:02:59.6]} 13. Rfe1 {[%clk 0:02:43.5]} 13... c5 {[%clk 0:02:58.8]} 14. Rad1
{[%clk 0:02:38.5]} 14... h6 {[%clk 0:02:54.4]} 15. Nb5 {[%clk 0:02:34.3]} 15...
Rc8 {[%clk 0:02:42.5]} 16. Nxa7 {[%clk 0:02:31.9]} 16... Ra8 {[%clk 0:02:42.3]}
17. Nc6 {[%clk 0:02:29.5]} 17... Qd7 {[%clk 0:02:41.5]} 18. Nxe7+ {[%clk
0:02:28.7]} 18... Qxe7 {[%clk 0:02:42]} 19. a3 {[%clk 0:02:18.5]} 19... d4
{[%clk 0:02:35.9]} 20. Qg3 {[%clk 0:02:14.2]} 20... Nh5 {[%clk 0:02:31.3]} 21.
Bd6 {[%clk 0:02:12.7]} 21... Qd7 {[%clk 0:02:10.3]} 22. Qe5 {[%clk 0:02:13]}
22... Rfc8 {[%clk 0:02:08.7]} 23. Bxc5 {[%clk 0:02:09.6]} 23... Nf6 {[%clk
0:02:01.4]} 24. Bxd4 {[%clk 0:02:02.7]} 24... Qb7 {[%clk 0:02:01]} 25. Bc3
{[%clk 0:01:47.3]} 25... Re8 {[%clk 0:01:58.7]} 26. Be4 {[%clk 0:01:41.9]} 1-0

[Event "*** SCC Grand Prix: Titled Tuesday Blitz"]
[Site "Chess.com"]
[Date "2020.07.07"]
[Round "10"]
[White "Kavyev_Ruslan"]
[Black "SharapovEvgeny"]
[Result "1-0"]
[WhiteElo "2554"]
[BlackElo "2432"]
[TimeControl "180+1"]
[EndTime "11:54:21 PDT"]
[Termination "Kavyev_Ruslan won by resignation"]

1. d4 {[%clk 0:03:00.9]} 1... d5 {[%clk 0:02:59.2]} 2. c4 {[%clk 0:03:00.9]}
2... c6 {[%clk 0:02:59]} 3. Nf3 {[%clk 0:03:00]} 3... Nf6 {[%clk 0:02:59]} 4. g3
{[%clk 0:03:00]} 4... g6 {[%clk 0:02:58.6]} 5. Bg2 {[%clk 0:02:58.5]} 5... Bg7
{[%clk 0:02:58.7]} 6. O-O {[%clk 0:02:58]} 6... O-O {[%clk 0:02:58.6]} 7. Qb3
{[%clk 0:02:58.7]} 7... Qb6 {[%clk 0:02:57.8]} 8. Nc3 {[%clk 0:02:59.4]} 8...
Qxb3 {[%clk 0:02:56.2]} 9. axb3 {[%clk 0:02:59.4]} 9... e6 {[%clk 0:02:56.2]}
10. Bf4 {[%clk 0:02:56.6]} 10... Nbd7 {[%clk 0:02:55.2]} 11. Bd6 {[%clk
0:02:49.6]} 11... Re8 {[%clk 0:02:54.2]} 12. c5 {[%clk 0:02:46.6]} 12... Ne4
{[%clk 0:02:45.8]} 13. e3 {[%clk 0:02:41.1]} 13... Nxd6 {[%clk 0:02:43.6]} 14.
cxd6 {[%clk 0:02:40.8]} 14... b6 {[%clk 0:02:41]} 15. b4 {[%clk 0:02:39.7]}
15... Bb7 {[%clk 0:02:40.3]} 16. Rfc1 {[%clk 0:02:34.4]} 16... f6 {[%clk
0:02:37.1]} 17. e4 {[%clk 0:02:28.6]} 17... a6 {[%clk 0:02:14.1]} 18. Re1 {[%clk
0:02:26.1]} 18... b5 {[%clk 0:02:12.7]} 19. e5 {[%clk 0:02:25.7]} 19... fxe5
{[%clk 0:01:52.5]} 20. dxe5 {[%clk 0:02:26.6]} 20... c5 {[%clk 0:01:52.8]} 21.
bxc5 {[%clk 0:02:25.9]} 21... Nxc5 {[%clk 0:01:52.5]} 22. Rad1 {[%clk
0:02:23.4]} 22... Ne4 {[%clk 0:01:49.7]} 23. Nxe4 {[%clk 0:02:21]} 23... dxe4
{[%clk 0:01:49.4]} 24. Ng5 {[%clk 0:02:21.4]} 24... Bxe5 {[%clk 0:01:48]} 25. d7
{[%clk 0:02:20.3]} 25... Red8 {[%clk 0:01:34.1]} 26. Nxe6 {[%clk 0:02:20]} 26...
Bxb2 {[%clk 0:01:33.1]} 27. Bxe4 {[%clk 0:02:19.1]} 27... Bc3 {[%clk 0:01:31.8]}
28. Bxb7 {[%clk 0:02:16.2]} 1-0

[Event "*** SCC Grand Prix: Titled Tuesday Blitz"]
[Site "Chess.com"]
[Date "2020.07.07"]
[Round "10"]
[White "Chessdude1987"]
[Black "IsaacWiebe"]
[Result "1-0"]
[WhiteElo "2227"]
[BlackElo "2096"]
[TimeControl "180+1"]
[EndTime "11:54:22 PDT"]
[Termination "Chessdude1987 won by resignation"]

1. e4 {[%clk 0:03:00.9]} 1... e6 {[%clk 0:03:00.4]} 2. d4 {[%clk 0:02:59.9]}
2... d5 {[%clk 0:03:01]} 3. exd5 {[%clk 0:02:58.8]} 3... exd5 {[%clk 0:03:00.9]}
4. c4 {[%clk 0:02:59.4]} 4... Bb4+ {[%clk 0:02:59.1]} 5. Nc3 {[%clk 0:02:58.8]}
5... Nf6 {[%clk 0:02:57.9]} 6. Nf3 {[%clk 0:02:56.1]} 6... O-O {[%clk
0:02:57.2]} 7. Bd3 {[%clk 0:02:55.9]} 7... Re8+ {[%clk 0:02:56.6]} 8. Be3 {[%clk
0:02:55.9]} 8... dxc4 {[%clk 0:02:57.1]} 9. Bxc4 {[%clk 0:02:55.2]} 9... Nbd7
{[%clk 0:02:57.2]} 10. O-O {[%clk 0:02:54.6]} 10... Bxc3 {[%clk 0:02:50.1]} 11.
bxc3 {[%clk 0:02:51.2]} 11... Nb6 {[%clk 0:02:45.2]} 12. Bb3 {[%clk 0:02:50.4]}
12... Bg4 {[%clk 0:02:40.8]} 13. h3 {[%clk 0:02:49.6]} 13... Bh5 {[%clk
0:02:40.4]} 14. g4 {[%clk 0:02:49.3]} 14... Bg6 {[%clk 0:02:40.1]} 15. Ne5
{[%clk 0:02:49]} 15... c6 {[%clk 0:02:38.9]} 16. f4 {[%clk 0:02:48]} 16... Be4
{[%clk 0:02:37.8]} 17. Nxf7 {[%clk 0:02:41]} 17... Qc7 {[%clk 0:02:28.8]} 18.
Nd6+ {[%clk 0:02:28]} 18... Kh8 {[%clk 0:02:25]} 19. Nxe8 {[%clk 0:02:27.3]}
19... Rxe8 {[%clk 0:02:23.4]} 20. Qd2 {[%clk 0:02:26.8]} 20... Nbd5 {[%clk
0:02:21.7]} 21. Rae1 {[%clk 0:02:24.8]} 21... Nxe3 {[%clk 0:01:57.7]} 22. Rxe3
{[%clk 0:02:23.5]} 22... Nd5 {[%clk 0:01:57.9]} 23. Ree1 {[%clk 0:02:06.5]}
23... g5 {[%clk 0:01:52.4]} 24. Bc2 {[%clk 0:02:01]} 1-0

[Event "*** SCC Grand Prix: Titled Tuesday Blitz"]
[Site "Chess.com"]
[Date "2020.07.07"]
[Round "10"]
[White "davigator"]
[Black "PetrolulSah"]
[Result "0-1"]
[WhiteElo "2290"]
[BlackElo "2185"]
[TimeControl "180+1"]
[EndTime "11:54:24 PDT"]
[Termination "PetrolulSah won by checkmate"]

1. e4 {[%clk 0:03:00.9]} 1... e5 {[%clk 0:02:50.7]} 2. Nf3 {[%clk 0:02:57.7]}
2... Nf6 {[%clk 0:02:50.7]} 3. Nxe5 {[%clk 0:02:56.8]} 3... d6 {[%clk
0:02:50.7]} 4. Nf3 {[%clk 0:02:56.2]} 4... Nxe4 {[%clk 0:02:50.8]} 5. Nc3 {[%clk
0:02:56.7]} 5... Nf6 {[%clk 0:02:50.2]} 6. d4 {[%clk 0:02:55.9]} 6... d5 {[%clk
0:02:50.2]} 7. Bd3 {[%clk 0:02:52.9]} 7... Be7 {[%clk 0:02:46.5]} 8. h3 {[%clk
0:02:52.6]} 8... Nc6 {[%clk 0:02:42.8]} 9. O-O {[%clk 0:02:50.7]} 9... O-O
{[%clk 0:02:36.7]} 10. a3 {[%clk 0:02:49.7]} 10... Be6 {[%clk 0:02:34.8]} 11.
Re1 {[%clk 0:02:44.8]} 11... a6 {[%clk 0:02:29.3]} 12. Ne2 {[%clk 0:02:41]}
12... Ne4 {[%clk 0:02:27]} 13. Nf4 {[%clk 0:02:39.8]} 13... Bf5 {[%clk 0:02:22]}
14. g4 {[%clk 0:02:37.6]} 14... Bg6 {[%clk 0:02:19]} 15. Nxg6 {[%clk 0:02:34.3]}
15... fxg6 {[%clk 0:02:17.9]} 16. Bxe4 {[%clk 0:02:34.8]} 16... dxe4 {[%clk
0:02:17.6]} 17. Rxe4 {[%clk 0:02:35.5]} 17... Qd5 {[%clk 0:02:09.1]} 18. Qd3
{[%clk 0:02:27.8]} 18... Bd6 {[%clk 0:02:00.3]} 19. Be3 {[%clk 0:02:16.7]} 19...
Rxf3 {[%clk 0:01:52.5]} 20. c4 {[%clk 0:02:07]} 20... Qf7 {[%clk 0:01:51.4]} 21.
c5 {[%clk 0:01:58.6]} 21... Bf4 {[%clk 0:01:47.4]} 22. d5 {[%clk 0:01:55]} 22...
Bxe3 {[%clk 0:01:45.3]} 23. fxe3 {[%clk 0:01:52.8]} 23... Rg3+ {[%clk
0:01:43.6]} 24. Kh1 {[%clk 0:01:49.1]} 24... Qf3+ {[%clk 0:01:43.5]} 25. Kh2
{[%clk 0:01:49.5]} 25... Qg2# {[%clk 0:01:43.2]} 0-1